[Event "Esbjerg Efterår 2024 - Esbjergmesterskabet"]
[Site "Esbjerg, Denmark"]
[Date "2024.10.18"]
[Round "2.1"]
[White "Jensen, Henrik Tranberg"]
[Black "Jacobsen, Mikkel Mansori"]
[Result "0-1"]
[TimeControl "1.-3. 20 min + 5 sek, 4.-7. 90 min + 30 sek + 15 min efter 40 træk"]
[WhiteElo "2014"]
[BlackElo "2350"]

1. d4 {[%clk 00:20:08]} d5 {[%clk 00:20:09]} {[%emt 00:00:02]} 2. c4 {[%clk
00:20:11]} {[%emt 00:00:02]} e6 {[%clk 00:20:13]} {[%emt 00:00:02]} 3. Nf3
{[%clk 00:20:13]} {[%emt 00:00:02]} a6 {[%clk 00:20:16]} {[%emt 00:00:02]} 4.
cxd5 {[%clk 00:19:56]} {[%emt 00:00:23]} exd5 {[%clk 00:20:20]} {[%emt
00:00:02]} 5. Bf4 {[%clk 00:19:53]} {[%emt 00:00:07]} Nf6 {[%clk 00:20:22]}
{[%emt 00:00:03]} 6. e3 {[%clk 00:19:42]} {[%emt 00:00:15]} Bd6 {[%clk
00:20:25]} {[%emt 00:00:03]} 7. Bg3 {[%clk 00:19:32]} {[%emt 00:00:15]} O-O
{[%clk 00:20:24]} {[%emt 00:00:06]} 8. Nc3 {[%clk 00:19:32]} {[%emt 00:00:05]}
Bf5 {[%clk 00:20:21]} {[%emt 00:00:08]} 9. Bd3 {[%clk 00:19:14]} {[%emt
00:00:23]} Bxd3 {[%clk 00:20:19]} {[%emt 00:00:07]} 10. Qxd3 {[%clk 00:19:17]}
{[%emt 00:00:02]} Re8 {[%clk 00:20:21]} {[%emt 00:00:04]} 11. Bxd6 {[%clk
00:19:01]} {[%emt 00:00:20]} Qxd6 {[%clk 00:20:24]} {[%emt 00:00:02]} 12. O-O
{[%clk 00:18:57]} {[%emt 00:00:09]} Nbd7 {[%clk 00:20:28]} {[%emt 00:00:02]} 13.
Rac1 {[%clk 00:18:32]} {[%emt 00:00:29]} c6 {[%clk 00:20:31]} {[%emt 00:00:02]}
14. h3 {[%clk 00:18:23]} {[%emt 00:00:14]} Ne4 {[%clk 00:20:34]} {[%emt
00:00:02]} 15. Nd2 {[%clk 00:18:07]} {[%emt 00:00:20]} Nxd2 {[%clk 00:20:34]}
{[%emt 00:00:06]} 16. Qxd2 {[%clk 00:18:11]} {[%emt 00:00:02]} Re6 {[%clk
00:20:22]} {[%emt 00:00:17]} 17. Ne2 {[%clk 00:17:09]} {[%emt 00:01:07]} Nf6
{[%clk 00:19:55]} {[%emt 00:00:32]} 18. Ng3 {[%clk 00:17:02]} {[%emt 00:00:12]}
g6 {[%clk 00:19:51]} {[%emt 00:00:09]} 19. b4 {[%clk 00:15:44]} {[%emt
00:01:22]} Nd7 {[%clk 00:18:43]} {[%emt 00:01:14]} 20. a4 {[%clk 00:15:28]}
{[%emt 00:00:22]} Nb6 {[%clk 00:18:31]} {[%emt 00:00:16]} 21. a5 {[%clk
00:14:45]} {[%emt 00:00:48]} Nc4 {[%clk 00:18:30]} {[%emt 00:00:07]} 22. Qc3
{[%clk 00:13:08]} {[%emt 00:01:42]} Nxe3 {[%clk 00:18:22]} {[%emt 00:00:13]} 23.
fxe3 {[%clk 00:13:10]} {[%emt 00:00:02]} Qxg3 {[%clk 00:18:25]} {[%emt
00:00:03]} 24. Rf3 {[%clk 00:13:14]} Qd6 {[%clk 00:18:14]} {[%emt 00:00:16]} 25.
Qc5 {[%clk 00:12:27]} {[%emt 00:00:52]} Qd7 {[%clk 00:17:40]} {[%emt 00:00:39]}
26. Qc2 {[%clk 00:11:49]} {[%emt 00:00:43]} Rae8 {[%clk 00:17:40]} {[%emt
00:00:05]} 27. Qd3 {[%clk 00:11:29]} {[%emt 00:00:25]} Qe7 {[%clk 00:17:39]}
{[%emt 00:00:07]} 28. Re1 {[%clk 00:11:05]} {[%emt 00:00:28]} Qxb4 {[%clk
00:17:19]} {[%emt 00:00:26]} 0-1

[Event "Esbjerg Efterår 2024 - Esbjergmesterskabet"]
[Site "Esbjerg, Denmark"]
[Date "2024.10.18"]
[Round "2.2"]
[White "Medhus, Vitus Bondo"]
[Black "Husum, Lars"]
[Result "1-0"]
[TimeControl "1.-3. 20 min + 5 sek, 4.-7. 90 min + 30 sek + 15 min efter 40 træk"]
[WhiteElo "2246"]
[BlackElo "2001"]

1. d4 {[%clk 00:20:06]} {[%emt 00:00:04]} d5 {[%clk 00:20:08]} {[%emt
00:00:02]} 2. Nc3 {[%clk 00:20:09]} {[%emt 00:00:02]} Bf5 {[%clk 00:20:08]}
{[%emt 00:00:05]} 3. Bf4 {[%clk 00:20:11]} {[%emt 00:00:03]} e6 {[%clk
00:20:11]} {[%emt 00:00:03]} 4. e3 {[%clk 00:20:02]} {[%emt 00:00:14]} Bd6
{[%clk 00:20:13]} {[%emt 00:00:03]} 5. Nf3 {[%clk 00:20:03]} {[%emt 00:00:04]}
Bxf4 {[%clk 00:19:54]} {[%emt 00:00:24]} 6. exf4 {[%clk 00:20:06]} {[%emt
00:00:02]} Qd6 {[%clk 00:19:19]} {[%emt 00:00:40]} 7. Ne5 {[%clk 00:18:01]}
{[%emt 00:02:10]} c6 {[%clk 00:18:41]} {[%emt 00:00:43]} 8. Bd3 {[%clk
00:16:58]} {[%emt 00:01:07]} Bxd3 {[%clk 00:17:38]} {[%emt 00:01:09]} 9. Qxd3
{[%clk 00:16:34]} {[%emt 00:00:29]} Nf6 {[%clk 00:15:54]} {[%emt 00:01:49]} 10.
O-O-O {[%clk 00:16:07]} {[%emt 00:00:32]} Na6 {[%clk 00:15:04]} {[%emt
00:00:56]} 11. g4 {[%clk 00:15:19]} {[%emt 00:00:53]} h6 {[%clk 00:14:28]}
{[%emt 00:00:40]} 12. h4 {[%clk 00:14:39]} {[%emt 00:00:44]} Nb4 {[%clk
00:14:12]} {[%emt 00:00:23]} 13. Qg3 {[%clk 00:14:11]} {[%emt 00:00:33]} Ne4
{[%clk 00:13:13]} {[%emt 00:01:04]} 14. Nxe4 {[%clk 00:14:12]} {[%emt
00:00:04]} dxe4 {[%clk 00:13:16]} {[%emt 00:00:02]} 15. Kb1 {[%clk 00:13:37]}
{[%emt 00:00:39]} Qd5 {[%clk 00:12:47]} {[%emt 00:00:34]} 16. Qa3 {[%clk
00:11:48]} {[%emt 00:01:54]} a5 {[%clk 00:12:14]} {[%emt 00:00:39]} 17. c3
{[%clk 00:11:44]} {[%emt 00:00:08]} Nd3 {[%clk 00:11:52]} {[%emt 00:00:27]} 18.
Nxd3 {[%clk 00:11:31]} {[%emt 00:00:18]} exd3 {[%clk 00:11:56]} {[%emt
00:00:02]} 19. Qb3 {[%clk 00:11:09]} {[%emt 00:00:28]} Qf3 {[%clk 00:11:11]}
{[%emt 00:00:50]} 20. f5 {[%clk 00:10:59]} {[%emt 00:00:14]} O-O {[%clk
00:09:39]} {[%emt 00:01:37]} 21. fxe6 {[%clk 00:11:02]} {[%emt 00:00:03]} fxe6
{[%clk 00:09:40]} {[%emt 00:00:04]} 22. Qxe6+ {[%clk 00:11:04]} {[%emt
00:00:03]} Kh8 {[%clk 00:09:37]} {[%emt 00:00:08]} 23. g5 {[%clk 00:09:21]}
{[%emt 00:01:48]} Rae8 {[%clk 00:09:30]} {[%emt 00:00:12]} 24. Qg6 {[%clk
00:09:22]} {[%emt 00:00:04]} h5 {[%clk 00:08:37]} {[%emt 00:00:58]} 25. Qxd3
{[%clk 00:09:10]} {[%emt 00:00:16]} Qg4 {[%clk 00:07:19]} {[%emt 00:01:23]} 26.
Rde1 {[%clk 00:06:31]} {[%emt 00:02:43]} Rxe1+ {[%clk 00:07:04]} {[%emt
00:00:21]} 27. Rxe1 {[%clk 00:06:34]} {[%emt 00:00:02]} Qxh4 {[%clk 00:07:07]}
{[%emt 00:00:02]} 28. Qg6 {[%clk 00:06:33]} {[%emt 00:00:06]} Qxf2 {[%clk
00:06:39]} {[%emt 00:00:32]} 29. Qxh5+ {[%clk 00:06:25]} {[%emt 00:00:13]} Kg8
{[%clk 00:06:43]} {[%emt 00:00:02]} 30. Rh1 {[%clk 00:06:14]} {[%emt 00:00:16]}
Qf5+ {[%clk 00:06:21]} {[%emt 00:00:27]} 31. Kc1 {[%clk 00:06:03]} {[%emt
00:00:15]} Qf4+ {[%clk 00:06:23]} {[%emt 00:00:04]} 32. Kd1 {[%clk 00:05:53]}
{[%emt 00:00:14]} Qf3+ {[%clk 00:04:40]} {[%emt 00:01:48]} 33. Qxf3 {[%clk
00:05:56]} {[%emt 00:00:02]} Rxf3 {[%clk 00:04:45]} 34. Re1 {[%clk 00:05:35]}
{[%emt 00:00:26]} Kf7 {[%clk 00:04:39]} {[%emt 00:00:11]} 35. Re5 {[%clk
00:05:30]} {[%emt 00:00:10]} b6 {[%clk 00:04:34]} {[%emt 00:00:10]} 36. Kc2
{[%clk 00:05:07]} {[%emt 00:00:27]} a4 {[%clk 00:04:18]} {[%emt 00:00:21]} 37.
c4 {[%clk 00:04:10]} {[%emt 00:01:02]} Rf2+ {[%clk 00:03:34]} {[%emt 00:00:50]}
38. Kc3 {[%clk 00:04:14]} {[%emt 00:00:01]} Rf3+ {[%clk 00:03:37]} {[%emt
00:00:02]} 39. Kb4 {[%clk 00:04:08]} {[%emt 00:00:10]} Rf2 {[%clk 00:03:41]} 40.
Ka3 {[%clk 00:04:02]} {[%emt 00:00:11]} Rd2 {[%clk 00:03:32]} {[%emt 00:00:14]}
41. d5 {[%clk 00:03:29]} {[%emt 00:00:39]} Rd4 {[%clk 00:03:11]} {[%emt
00:00:25]} 42. b3 {[%clk 00:03:04]} {[%emt 00:00:31]} axb3 {[%clk 00:03:11]}
{[%emt 00:00:05]} 43. axb3 {[%clk 00:03:07]} {[%emt 00:00:02]} c5 {[%clk
00:02:36]} {[%emt 00:00:41]} 44. Ka4 {[%clk 00:02:57]} {[%emt 00:00:14]} Rd3
{[%clk 00:02:29]} {[%emt 00:00:12]} 45. Re6 {[%clk 00:02:49]} {[%emt 00:00:12]}
b5+ {[%clk 00:02:11]} {[%emt 00:00:23]} 46. Kxb5 {[%clk 00:02:51]} {[%emt
00:00:03]} Rxb3+ {[%clk 00:02:12]} {[%emt 00:00:04]} 47. Kxc5 {[%clk 00:02:54]}
{[%emt 00:00:02]} Rc3 {[%clk 00:02:08]} {[%emt 00:00:10]} 48. g6+ {[%clk
00:02:56]} {[%emt 00:00:02]} Kf8 {[%clk 00:02:08]} {[%emt 00:00:05]} 49. Kd6
{[%clk 00:02:45]} {[%emt 00:00:17]} Rxc4 {[%clk 00:02:01]} {[%emt 00:00:12]} 50.
Kd7 {[%clk 00:02:47]} {[%emt 00:00:02]} 1-0

[Event "Esbjerg Efterår 2024 - Esbjergmesterskabet"]
[Site "Esbjerg, Denmark"]
[Date "2024.10.18"]
[Round "2.3"]
[White "Hye, Allan"]
[Black "Løftgaard, Mikkel Vinh"]
[Result "0-1"]
[TimeControl "1.-3. 20 min + 5 sek, 4.-7. 90 min + 30 sek + 15 min efter 40 træk"]
[WhiteElo "1988"]
[BlackElo "2209"]

1. d4 {[%clk 00:20:09]} {[%emt 00:00:01]} Nf6 {[%clk 00:19:51]} {[%emt
00:00:19]} 2. c4 {[%clk 00:20:11]} {[%emt 00:00:03]} e6 {[%clk 00:19:55]}
{[%emt 00:00:01]} 3. Nc3 {[%clk 00:20:14]} {[%emt 00:00:02]} Bb4 {[%clk
00:19:59]} {[%emt 00:00:01]} 4. f3 {[%clk 00:20:13]} {[%emt 00:00:06]} c5
{[%clk 00:20:00]} {[%emt 00:00:05]} 5. e3 {[%clk 00:20:06]} {[%emt 00:00:11]}
O-O {[%clk 00:20:01]} {[%emt 00:00:03]} 6. a3 {[%clk 00:20:09]} {[%emt
00:00:03]} cxd4 {[%clk 00:20:01]} {[%emt 00:00:05]} 7. exd4 {[%clk 00:19:50]}
{[%emt 00:00:24]} Ba5 {[%clk 00:19:56]} {[%emt 00:00:10]} 8. Bd3 {[%clk
00:19:24]} {[%emt 00:00:31]} d5 {[%clk 00:20:00]} {[%emt 00:00:02]} 9. Nge2
{[%clk 00:18:24]} {[%emt 00:01:03]} dxc4 {[%clk 00:20:01]} {[%emt 00:00:05]} 10.
Bxc4 {[%clk 00:18:26]} {[%emt 00:00:04]} Nc6 {[%clk 00:20:05]} 11. Bg5 {[%clk
00:17:54]} {[%emt 00:00:36]} Bb6 {[%clk 00:20:06]} {[%emt 00:00:04]} 12. d5
{[%clk 00:16:29]} {[%emt 00:01:30]} Ne5 {[%clk 00:20:06]} {[%emt 00:00:04]} 13.
Ba2 {[%clk 00:16:11]} {[%emt 00:00:24]} h6 {[%clk 00:20:03]} {[%emt 00:00:08]}
14. Bxf6 {[%clk 00:15:22]} {[%emt 00:00:54]} Qxf6 {[%clk 00:20:04]} {[%emt
00:00:03]} 15. Ne4 {[%clk 00:14:47]} {[%emt 00:00:40]} Qh4+ {[%clk 00:18:59]}
{[%emt 00:01:10]} 16. N2g3 {[%clk 00:13:39]} {[%emt 00:01:13]} exd5 {[%clk
00:18:53]} {[%emt 00:00:12]} 17. Qxd5 {[%clk 00:12:58]} {[%emt 00:00:46]} Qf4
{[%clk 00:18:55]} {[%emt 00:00:03]} 18. Ne2 {[%clk 00:12:17]} {[%emt 00:00:45]}
Qh4+ {[%clk 00:18:00]} {[%emt 00:01:01]} 19. N2g3 {[%clk 00:11:28]} {[%emt
00:00:53]} Qe7 {[%clk 00:14:58]} {[%emt 00:03:07]} 20. O-O-O {[%clk 00:08:24]}
{[%emt 00:03:08]} Be6 {[%clk 00:13:43]} {[%emt 00:01:21]} 21. Qxe5 {[%clk
00:08:03]} {[%emt 00:00:26]} Be3+ {[%clk 00:13:46]} {[%emt 00:00:01]} 22. Rd2
{[%clk 00:07:32]} {[%emt 00:00:36]} Rac8+ {[%clk 00:13:44]} {[%emt 00:00:07]}
23. Nc3 {[%clk 00:07:17]} {[%emt 00:00:21]} Rxc3+ {[%clk 00:12:28]} {[%emt
00:01:20]} 24. bxc3 {[%clk 00:05:01]} {[%emt 00:02:22]} Qxa3+ {[%clk 00:10:29]}
{[%emt 00:02:04]} 25. Kd1 {[%clk 00:05:04]} {[%emt 00:00:02]} Bxd2 {[%clk
00:10:33]} {[%emt 00:00:02]} 26. Bxe6 {[%clk 00:04:53]} {[%emt 00:00:17]} Bxc3
{[%clk 00:10:36]} {[%emt 00:00:02]} 27. Bxf7+ {[%clk 00:03:44]} {[%emt
00:01:13]} Rxf7 {[%clk 00:10:27]} {[%emt 00:00:13]} 28. Qe8+ {[%clk 00:03:02]}
{[%emt 00:00:48]} Rf8 {[%clk 00:10:31]} {[%emt 00:00:02]} 29. Qe6+ {[%clk
00:03:05]} {[%emt 00:00:02]} Kh8 {[%clk 00:10:34]} {[%emt 00:00:02]} 30. Kc2
{[%clk 00:02:26]} {[%emt 00:00:43]} Qb2+ {[%clk 00:10:37]} {[%emt 00:00:02]} 31.
Kd3 {[%clk 00:02:30]} Rd8+ {[%clk 00:10:39]} {[%emt 00:00:02]} 32. Ke4 {[%clk
00:02:27]} {[%emt 00:00:08]} Qb4+ {[%clk 00:10:22]} {[%emt 00:00:23]} 33. Kf5
{[%clk 00:02:15]} {[%emt 00:00:16]} Rf8+ {[%clk 00:10:15]} {[%emt 00:00:11]}
0-1

[Event "Esbjerg Efterår 2024 - Esbjergmesterskabet"]
[Site "Esbjerg, Denmark"]
[Date "2024.10.18"]
[Round "2.4"]
[White "Hansen, Lars"]
[Black "Bønnelykke, Ole"]
[Result "1-0"]
[TimeControl "1.-3. 20 min + 5 sek, 4.-7. 90 min + 30 sek + 15 min efter 40 træk"]
[WhiteElo "2203"]
[BlackElo "1988"]

1. Nf3 {[%clk 00:00:00]} {[%emt 00:15:52]} Nf6 {[%clk 00:00:00]} {[%emt
00:00:11]} 2. b3 {[%clk 00:00:00]} {[%emt 00:00:02]} e6 {[%clk 00:19:58]}
{[%emt 00:00:30]} 3. Bb2 {[%clk 00:20:08]} {[%emt 00:00:03]} b6 {[%clk
00:19:59]} {[%emt 00:00:04]} 4. g3 {[%clk 00:18:49]} {[%emt 00:01:24]} Bb7
{[%clk 00:20:01]} {[%emt 00:00:02]} 5. Bg2 {[%clk 00:18:53]} c5 {[%clk
00:19:40]} {[%emt 00:00:27]} 6. O-O {[%clk 00:17:54]} {[%emt 00:01:03]} d5
{[%clk 00:19:36]} {[%emt 00:00:09]} 7. d3 {[%clk 00:17:16]} {[%emt 00:00:44]}
Bd6 {[%clk 00:18:52]} {[%emt 00:00:48]} 8. Nbd2 {[%clk 00:17:18]} {[%emt
00:00:04]} Nbd7 {[%clk 00:18:26]} {[%emt 00:00:31]} 9. e3 {[%clk 00:16:46]}
{[%emt 00:00:37]} Qc7 {[%clk 00:18:03]} {[%emt 00:00:27]} 10. Qe2 {[%emt
00:01:18]} O-O {[%clk 00:16:52]} {[%emt 00:00:01]} 11. e4 dxe4 {[%clk
00:16:05]} 12. dxe4 {[%clk 00:16:36]} {[%emt 00:00:03]} Ne5 {[%clk 00:15:32]}
{[%emt 00:00:38]} 13. Rad1 {[%clk 00:15:56]} {[%emt 00:00:45]} Nxf3+ {[%clk
00:14:29]} {[%emt 00:01:08]} 14. Nxf3 {[%clk 00:13:42]} {[%emt 00:02:20]} e5
{[%clk 00:10:15]} {[%emt 00:04:19]} 15. Nh4 {[%clk 00:13:40]} {[%emt 00:00:08]}
Bc8 {[%clk 00:09:28]} {[%emt 00:00:50]} 16. Nf5 {[%clk 00:11:18]} {[%emt
00:02:27]} Bxf5 {[%clk 00:09:17]} {[%emt 00:00:16]} 17. exf5 {[%clk 00:11:22]}
Rad8 {[%clk 00:08:27]} {[%emt 00:00:55]} 18. Rd2 {[%clk 00:09:30]} {[%emt
00:01:59]} Rfe8 {[%clk 00:05:02]} {[%emt 00:03:30]} 19. Rfd1 {[%clk 00:09:25]}
{[%emt 00:00:09]} Rd7 {[%clk 00:04:43]} {[%emt 00:00:24]} 20. Qb5 {[%clk
00:08:58]} {[%emt 00:00:32]} Red8 {[%clk 00:03:48]} {[%emt 00:01:01]} 21. h3
{[%clk 00:08:18]} {[%emt 00:00:46]} g6 {[%clk 00:02:57]} {[%emt 00:00:56]} 22.
fxg6 {[%clk 00:06:15]} {[%emt 00:02:09]} hxg6 {[%clk 00:02:55]} {[%emt
00:00:07]} 23. Qc6 {[%clk 00:03:43]} {[%emt 00:02:37]} Kg7 {[%clk 00:02:02]}
{[%emt 00:00:57]} 24. f4 {[%clk 00:03:01]} {[%emt 00:00:48]} exf4 {[%clk
00:01:10]} {[%emt 00:00:57]} 1-0

[Event "Esbjerg Efterår 2024 - Esbjergmesterskabet"]
[Site "Esbjerg, Denmark"]
[Date "2024.10.18"]
[Round "2.5"]
[White "Paludan, Noah"]
[Black "Perets, Dmytro"]
[Result "0-1"]
[TimeControl "1.-3. 20 min + 5 sek, 4.-7. 90 min + 30 sek + 15 min efter 40 træk"]
[WhiteElo "1979"]
[BlackElo "2152"]

1. e4 {[%clk 00:20:00]} {[%emt 00:00:08]} g6 {[%clk 00:20:09]} {[%emt
00:00:03]} 2. d4 {[%clk 00:19:43]} {[%emt 00:00:21]} d6 {[%clk 00:20:13]}
{[%emt 00:00:02]} 3. Nc3 {[%clk 00:19:13]} {[%emt 00:00:35]} Bg7 {[%clk
00:20:16]} {[%emt 00:00:02]} 4. Be3 {[%clk 00:19:14]} {[%emt 00:00:04]} Nf6
{[%clk 00:20:19]} {[%emt 00:00:03]} 5. Qd2 {[%clk 00:18:43]} {[%emt 00:00:36]}
c6 {[%clk 00:20:23]} {[%emt 00:00:01]} 6. O-O-O {[%clk 00:18:01]} {[%emt
00:00:46]} b5 {[%clk 00:20:12]} {[%emt 00:00:17]} 7. Bd3 {[%clk 00:16:40]}
{[%emt 00:01:25]} b4 {[%clk 00:18:48]} {[%emt 00:01:29]} 8. Na4 {[%clk
00:15:33]} {[%emt 00:01:13]} Qa5 {[%clk 00:18:39]} {[%emt 00:00:14]} 9. b3
{[%clk 00:15:18]} {[%emt 00:00:19]} Ng4 {[%clk 00:17:39]} {[%emt 00:01:05]} 10.
Nf3 {[%clk 00:12:37]} {[%emt 00:02:46]} Nxe3 {[%clk 00:17:42]} {[%emt
00:00:02]} 11. fxe3 {[%clk 00:12:37]} {[%emt 00:00:05]} O-O {[%clk 00:17:13]}
{[%emt 00:00:34]} 12. h4 {[%clk 00:10:08]} {[%emt 00:02:35]} Bg4 {[%clk
00:16:37]} {[%emt 00:00:42]} 13. Rdf1 {[%clk 00:09:51]} {[%emt 00:00:21]} c5
{[%clk 00:16:19]} {[%emt 00:00:23]} 14. a3 {[%clk 00:08:42]} {[%emt 00:01:14]}
Nc6 {[%clk 00:15:03]} {[%emt 00:01:21]} 15. d5 {[%clk 00:04:22]} {[%emt
00:04:25]} Ne5 {[%clk 00:14:31]} {[%emt 00:00:37]} 16. axb4 {[%clk 00:04:01]}
{[%emt 00:00:25]} cxb4 {[%clk 00:14:35]} {[%emt 00:00:02]} 17. Nd4 {[%clk
00:03:33]} {[%emt 00:00:33]} Bd7 {[%clk 00:14:24]} {[%emt 00:00:16]} 18. h5
{[%clk 00:02:41]} {[%emt 00:00:56]} Bxa4 {[%clk 00:14:24]} {[%emt 00:00:07]} 19.
bxa4 {[%clk 00:02:44]} {[%emt 00:00:03]} Qxa4 {[%clk 00:14:22]} {[%emt
00:00:06]} 20. Kd1 {[%clk 00:01:52]} {[%emt 00:00:57]} Rac8 {[%clk 00:11:36]}
{[%emt 00:02:51]} 21. hxg6 {[%clk 00:00:30]} {[%emt 00:01:26]} hxg6 {[%clk
00:11:36]} {[%emt 00:00:06]} 22. Bb5 {[%clk 00:00:11]} {[%emt 00:00:24]} Qa1+
{[%clk 00:11:24]} {[%emt 00:00:17]} 23. Qc1 {[%clk 00:00:13]} {[%emt 00:00:03]}
Qxc1+ {[%clk 00:11:07]} {[%emt 00:00:22]} 24. Kxc1 {[%clk 00:00:17]} {[%emt
00:00:01]} Rc3 {[%clk 00:11:06]} {[%emt 00:00:05]} 25. Nc6 {[%clk 00:00:17]}
{[%emt 00:00:05]} Nxc6 {[%clk 00:11:08]} {[%emt 00:00:03]} 26. Bxc6 {[%clk
00:00:10]} {[%emt 00:00:11]} Rxe3 {[%clk 00:11:07]} {[%emt 00:00:05]} 27. Rf3
{[%clk 00:00:10]} {[%emt 00:00:05]} Rxf3 {[%clk 00:11:09]} {[%emt 00:00:04]} 28.
gxf3 {[%clk 00:00:14]} {[%emt 00:00:02]} Bc3 {[%clk 00:10:24]} {[%emt
00:00:50]} 29. Kb1 {[%clk 00:00:09]} {[%emt 00:00:10]} Kg7 {[%clk 00:10:22]}
{[%emt 00:00:07]} 30. Ka2 {[%clk 00:00:12]} {[%emt 00:00:02]} Rb8 {[%clk
00:09:29]} {[%emt 00:00:58]} 31. Kb3 {[%clk 00:00:15]} {[%emt 00:00:02]} Rb6
{[%clk 00:09:32]} {[%emt 00:00:02]} 32. Ba4 {[%clk 00:00:07]} {[%emt 00:00:13]}
Ra6 {[%clk 00:09:23]} {[%emt 00:00:15]} 33. Bb5 {[%clk 00:00:11]} {[%emt
00:00:01]} Ra3+ {[%clk 00:09:26]} {[%emt 00:00:02]} 34. Kc4 {[%clk 00:00:15]}
{[%emt 00:00:01]} a5 {[%clk 00:09:30]} {[%emt 00:00:02]} 35. Rb1 {[%clk
00:00:08]} {[%emt 00:00:12]} a4 {[%clk 00:09:15]} {[%emt 00:00:19]} 36. Bc6
{[%clk 00:00:06]} {[%emt 00:00:07]} Kf6 {[%clk 00:09:08]} {[%emt 00:00:12]} 37.
f4 {[%clk 00:00:10]} {[%emt 00:00:01]} Ra2 {[%clk 00:08:50]} {[%emt 00:00:23]}
38. Kd3 {[%clk 00:00:08]} {[%emt 00:00:07]} a3 {[%clk 00:08:47]} {[%emt
00:00:08]} 39. Ba4 {[%clk 00:00:11]} {[%emt 00:00:02]} Rb2 {[%clk 00:08:48]}
{[%emt 00:00:04]} 40. Rf1 {[%clk 00:00:13]} {[%emt 00:00:03]} a2 {[%clk
00:08:40]} {[%emt 00:00:12]} 41. e5+ {[%clk 00:00:17]} {[%emt 00:00:02]} dxe5
{[%clk 00:08:40]} {[%emt 00:00:06]} 42. fxe5+ {[%clk 00:00:20]} {[%emt
00:00:01]} Kxe5 {[%clk 00:08:41]} {[%emt 00:00:04]} 0-1

[Event "Esbjerg Efterår 2024 - Esbjergmesterskabet"]
[Site "Esbjerg, Denmark"]
[Date "2024.10.18"]
[Round "2.6"]
[White "Vinther, Christoffer"]
[Black "Justesen, Asger"]
[Result "1-0"]
[TimeControl "1.-3. 20 min + 5 sek, 4.-7. 90 min + 30 sek + 15 min efter 40 træk"]
[WhiteElo "1800"]
[BlackElo "2086"]

1. e4 {[%clk 00:20:05]} {[%emt 00:00:05]} e5 {[%clk 00:20:07]} {[%emt
00:00:02]} 2. Nc3 {[%clk 00:20:07]} {[%emt 00:00:04]} Nc6 {[%clk 00:19:43]}
{[%emt 00:00:29]} 3. f4 {[%clk 00:20:07]} {[%emt 00:00:05]} exf4 {[%clk
00:19:18]} {[%emt 00:00:30]} 4. Nf3 {[%clk 00:20:11]} {[%emt 00:00:02]} g5
{[%clk 00:18:34]} {[%emt 00:00:49]} 5. Bc4 {[%clk 00:18:45]} {[%emt 00:01:32]}
d6 {[%clk 00:18:22]} {[%emt 00:00:16]} 6. d4 {[%clk 00:18:39]} {[%emt
00:00:11]} Bg7 {[%clk 00:18:09]} {[%emt 00:00:18]} 7. O-O {[%clk 00:18:29]}
{[%emt 00:00:15]} Bg4 {[%clk 00:17:06]} {[%emt 00:01:08]} 8. Qd2 {[%clk
00:13:37]} {[%emt 00:04:58]} Bxf3 {[%clk 00:15:46]} {[%emt 00:01:24]} 9. Rxf3
{[%clk 00:13:05]} {[%emt 00:00:37]} Bxd4+ {[%clk 00:15:19]} {[%emt 00:00:32]}
10. Kh1 {[%clk 00:13:07]} {[%emt 00:00:03]} Qd7 {[%clk 00:14:34]} {[%emt
00:00:50]} 11. g3 {[%clk 00:12:18]} {[%emt 00:00:54]} O-O-O {[%clk 00:11:30]}
{[%emt 00:03:10]} 12. gxf4 {[%clk 00:12:19]} {[%emt 00:00:04]} g4 {[%clk
00:10:49]} {[%emt 00:00:46]} 13. Rd3 {[%clk 00:12:14]} {[%emt 00:00:10]} Bb6
{[%clk 00:09:56]} {[%emt 00:00:58]} 14. Nd5 {[%clk 00:11:44]} {[%emt 00:00:35]}
Nce7 {[%clk 00:07:30]} {[%emt 00:02:31]} 15. Nxb6+ {[%clk 00:10:12]} {[%emt
00:01:38]} axb6 {[%clk 00:07:34]} {[%emt 00:00:01]} 16. Ra3 {[%clk 00:10:15]}
{[%emt 00:00:02]} Kb8 {[%clk 00:07:21]} {[%emt 00:00:18]} 17. Qb4 {[%clk
00:10:07]} {[%emt 00:00:13]} Qc6 {[%clk 00:03:10]} {[%emt 00:04:15]} 18. Bb5
{[%clk 00:08:46]} {[%emt 00:01:27]} Qxc2 {[%clk 00:02:47]} {[%emt 00:00:27]} 19.
Be3 {[%clk 00:06:34]} {[%emt 00:02:17]} Nf6 {[%clk 00:02:51]} {[%emt 00:00:01]}
20. Bd3 {[%clk 00:06:05]} {[%emt 00:00:33]} Qc6 {[%clk 00:02:03]} {[%emt
00:00:54]} 21. Rc1 {[%clk 00:06:09]} Qd7 {[%clk 00:01:59]} {[%emt 00:00:08]} 22.
Bb5 {[%clk 00:06:09]} {[%emt 00:00:06]} Qe6 {[%clk 00:01:41]} {[%emt 00:00:23]}
23. Bd3 {[%clk 00:04:48]} {[%emt 00:01:25]} Nc8 {[%clk 00:00:41]} {[%emt
00:01:05]} 24. Qa4 {[%emt 00:00:35]} Qxe4+ {[%clk 00:00:32]} {[%emt 00:00:08]}
25. Bxe4 {[%emt 00:00:10]} 1-0